bitfinex/quotes_SOLUSD_20220113
["timestamp","ask_amount","ask_price","bid_price","bid_amount"]
[1642115907040,12.79,146.55,146.46,31.65746921]
[1642115907439,13.05,146.55,146.46,31.65746921]
[1642115910144,81.06,146.55,146.46,25.40746921]
[1642115910443,105.6764,146.55,146.46,25.40746921]
[1642115910846,105.6764,146.55,146.46,25.65746921]
[1642115911445,105.6764,146.55,146.46,31.65746921]
[1642115912251,37.6664,146.55,146.46,31.65746921]
[1642115916751,37.6664,146.55,146.46,25.65746921]
[1642115916951,37.6664,146.55,146.46,25.40746921]
[1642115917352,105.6764,146.55,146.46,25.65746921]
[1642115921765,37.1564,146.55,146.46,25.65746921]
[1642115921967,2.73,146.55,146.46,31.65746921]
[1642115922166,25.4103,146.58,146.47,2.73]
[1642115922566,31.4103,146.58,146.47,8.98]
[1642115922968,31.6603,146.58,146.47,8.98]
[1642115923170,31.6603,146.58,146.48,10.2376]
[1642115923468,31.6603,146.58,146.49,30.05666554]
[1642115923668,2.98,146.58,146.49,36.05666554]
[1642115923871,2.98,146.58,146.49,36.30666554]
[1642115925072,3.24,146.58,146.49,36.30666554]
[1642115925273,3.24,146.58,146.5,10.236]
[1642115925572,25.10146677,146.57,146.5,6.25]
[1642115925773,2.729,146.56,146.5,6.25]
[1642115925988,8.989,146.56,146.5,6.25]
[1642115926187,8.989,146.56,146.5,0.25]
[1642115926787,2.989,146.56,146.47,38.73513452]
[1642115926987,8.989,146.56,146.47,38.73513452]
[1642115927190,2.989,146.56,146.48,10.2376]
[1642115927590,2.729,146.56,146.48,16.4876]
[1642115928490,2.73,146.57,146.48,18.39759521]
[1642115928689,32.8448,146.6,146.52,10.2346]
[1642115928991,12.539,146.63,146.52,16.4846]
[1642115929392,27.03187059,146.62,146.53,25.07279686]
[1642115929589,2.728,146.61,146.53,31.32279686]
[1642115929991,3.238,146.61,146.53,6.25]
[1642115930193,3.238,146.61,146.53,6.0]
[1642115930391,28.1118,146.61,146.51,8.729]
[1642115930691,28.1118,146.61,146.51,6.25]
[1642115931092,28.1118,146.61,146.51,35.99553538]
[1642115931596,28.1118,146.61,146.51,38.72453538]
[1642115932192,2.978,146.61,146.51,48.53453538]
[1642115932391,0.25,146.61,146.51,48.53453538]
[1642115932592,2.729,146.6,146.51,48.79453538]
[1642115932790,2.729,146.64,146.51,48.79453538]
[1642115932993,0.25,146.6,146.51,48.79453538]
[1642115933192,0.25,146.6,146.51,59.03003538]
[1642115934097,3.239,146.62,146.51,59.03003538]
[1642115935095,2.729,146.62,146.51,57.32645787]
[1642115935295,2.729,146.64,146.51,59.22645308]
[1642115935495,23.3358,146.65,146.51,59.22645308]
[1642115935696,2.728,146.66,146.51,59.22645308]
[1642115935895,2.728,146.67,146.51,59.22645308]
[1642115936096,1.64999521,146.69,146.51,59.22645308]
[1642115936097,25.35149667,146.66,146.51,59.22645308]
[1642115936296,2.728,146.65,146.51,59.22645308]
[1642115937095,2.988,146.65,146.51,59.22645308]
[1642115937496,2.978,146.65,146.51,59.22645308]
[1642115937696,2.728,146.65,146.51,59.22645308]
[1642115937895,2.978,146.65,146.51,59.22645308]
[1642115938196,2.728,146.65,146.51,59.22645308]
[1642115938396,2.978,146.65,146.51,59.22645308]
[1642115938596,2.728,146.65,146.51,59.22645308]
[1642115939000,3.238,146.65,146.51,59.22645308]
[1642115939997,3.238,146.65,146.51,57.57645787]
[1642115939998,23.5639351,146.63,146.51,57.57645787]
[1642115940199,26.2929351,146.63,146.52,1.64999521]
[1642115940400,26.8029351,146.63,146.56,10.233]
[1642115940598,3.239,146.63,146.56,16.483]
[1642115941399,0.51,146.63,146.56,16.483]
[1642115941603,32.0902,146.67,146.56,16.483]
[1642115941805,26.0902,146.67,146.56,16.483]
[1642115942000,32.0902,146.67,146.56,16.483]
[1642115943604,2.728,146.67,146.56,26.293]
[1642115943804,117.9679,146.7,146.56,26.293]
[1642115943805,2.728,146.69,146.62,10.2288]
[1642115944004,2.728,146.69,146.62,10.4788]
[1642115944205,2.728,146.69,146.62,16.7388]
[1642115944605,2.728,146.69,146.63,27.44542713]
[1642115944807,93.4,146.7,146.63,27.44542713]
[1642115945007,93.65,146.7,146.65,10.2269]
[1642115945405,93.65,146.7,146.65,10.4769]
[1642115946707,93.65,146.7,146.65,10.2269]
[1642115946909,28.87779486,146.69,146.63,10.2278]
[1642115947107,2.727,146.68,146.6,9.81]
[1642115947308,2.727,146.68,146.62,0.25]
[1642115947516,3.237,146.68,146.62,0.25]
[1642115947909,26.9096,146.68,146.6,6.0]
[1642115948109,34.0696,146.68,146.59,8.727]
[1642115948309,34.0696,146.68,146.59,2.727]
[1642115948508,40.0696,146.68,146.59,8.727]
[1642115948708,40.0696,146.68,146.6,29.94991804]
[1642115948911,32.9096,146.68,146.6,29.94991804]
[1642115949111,26.6596,146.68,146.6,35.94991804]
[1642115949310,26.6596,146.68,146.6,36.19991804]
[1642115950109,2.987,146.68,146.6,36.19991804]
[1642115950310,0.26,146.68,146.6,46.43041804]
[1642115950511,3.237,146.69,146.6,46.43041804]
[1642115950910,34.30557729,146.69,146.6,46.43041804]
[1642115951312,22.8997,146.68,146.6,46.43041804]
[1642115951514,23.4097,146.68,146.6,16.4805]
[1642115952545,23.4097,146.68,146.6,40.7135273]
[1642115953344,23.4097,146.68,146.6,6.25]
[1642115953546,23.4097,146.68,146.6,0.25]
[1642115953745,29.4097,146.68,146.6,6.25]
[1642115954345,29.4097,146.68,146.6,0.25]
[1642115954545,2.727,146.67,146.6,6.25]
[1642115954946,3.237,146.67,146.6,0.25]
[1642115955150,3.237,146.67,146.6,6.25]
[1642115955345,3.237,146.67,146.6,6.0]
[1642115955548,3.237,146.67,146.6,6.25]
[1642115955746,22.56357386,146.66,146.6,0.25]
[1642115955946,23.07357386,146.66,146.6,6.25]
[1642115956947,0.51,146.66,146.6,6.25]
[1642115957147,3.237,146.67,146.6,0.25]
[1642115957349,3.237,146.67,146.6,6.25]
[1642115957549,3.237,146.67,146.6,6.0]
[1642115957947,3.237,146.67,146.59,35.36972887]
[1642115958148,0.51,146.67,146.59,35.36972887]
[1642115958548,23.4097,146.68,146.59,35.36972887]
[1642115958746,2.727,146.67,146.59,35.36972887]
[1642115958947,3.237,146.67,146.59,35.61972887]
[1642115959146,3.237,146.67,146.6,10.2304]
[1642115959547,3.237,146.67,146.6,16.2304]
[1642115959950,3.237,146.67,146.6,6.25]
[1642115960151,3.237,146.67,146.59,35.36972887]
[1642115960349,3.237,146.67,146.59,45.85092887]
[1642115961148,2.977,146.67,146.59,45.85092887]
[1642115962048,31.19546828,146.67,146.59,45.85092887]
[1642115962248,31.19546828,146.67,146.59,45.60092887]
[1642115962451,31.19546828,146.67,146.59,35.61972887]
[1642115962650,31.19546828,146.67,146.59,35.36972887]
[1642115962847,31.45546828,146.67,146.59,35.36972887]
[1642115964247,31.45546828,146.67,146.59,6.0]
[1642115964450,31.45546828,146.67,146.58,6.0]
[1642115964651,31.45546828,146.67,146.58,6.25]
[1642115964849,31.45546828,146.67,146.58,0.25]
[1642115965049,31.45546828,146.67,146.58,6.25]
[1642115965449,37.45546828,146.67,146.58,6.25]
[1642115965651,31.45546828,146.67,146.58,6.25]
[1642115965952,3.237,146.67,146.58,6.25]
[1642115966352,2.977,146.67,146.58,0.25]
[1642115966551,2.977,146.67,146.58,6.0]
[1642115966952,2.977,146.67,146.58,0.25]
[1642115967153,2.977,146.67,146.58,10.4818]
[1642115967455,2.977,146.67,146.58,16.4818]
[1642115967653,3.237,146.67,146.58,16.4818]
[1642115968952,3.237,146.67,146.58,28.20179521]
[1642115969755,2.977,146.67,146.58,28.20179521]
[1642115970984,3.237,146.67,146.58,28.20179521]
[1642115971158,2.977,146.67,146.58,28.20179521]
[1642115972358,2.727,146.67,146.58,28.20179521]
[1642115972557,2.987,146.67,146.58,28.20179521]
[1642115973759,3.237,146.67,146.58,28.20179521]
[1642115974562,26.56167165,146.67,146.58,28.20179521]
[1642115974762,26.56167165,146.67,146.58,26.2918]
[1642115976663,26.56167165,146.67,146.58,6.25]
[1642115976864,26.56167165,146.67,146.58,0.25]
[1642115977066,26.56167165,146.67,146.56,16.4827]
[1642115978066,36.79387165,146.67,146.56,16.4827]
[1642115978264,42.79387165,146.67,146.56,16.4827]
[1642115978492,110.80387165,146.67,146.56,6.0]
[1642115978692,117.54587165,146.67,146.56,6.0]
[1642115978892,117.54587165,146.67,146.54,18.9624]
[1642115979292,117.54587165,146.67,146.54,8.728]
[1642115979893,117.54587165,146.67,146.54,8.978]
[1642115980192,117.29587165,146.67,146.54,8.978]
[1642115980796,120.96336395,146.67,146.54,8.978]
[1642115981197,120.96336395,146.67,146.54,6.25]
[1642115981397,121.21336395,146.67,146.54,6.25]
[1642115981598,121.21336395,146.67,146.54,16.4846]
[1642115983398,47.20336395,146.67,146.54,16.4846]
[1642115983600,36.79387165,146.67,146.54,18.13459521]
[1642115984001,36.28387165,146.67,146.54,18.39459521]
[1642115984299,36.28387165,146.67,146.54,28.20459521]
[1642115985401,36.79387165,146.67,146.54,28.20459521]
[1642115985602,36.53387165,146.67,146.54,28.20459521]
[1642115987004,36.79387165,146.67,146.54,28.20459521]
[1642115988705,36.79387165,146.67,146.54,51.54529521]
[1642115989206,36.79387165,146.67,146.54,49.8953]
[1642115989606,42.79387165,146.67,146.54,49.8953]
[1642115989807,118.75187165,146.67,146.54,49.8953]
[1642115990208,50.74187165,146.67,146.54,49.8953]
[1642115990408,50.74187165,146.67,146.54,51.54529521]
[1642115990910,50.74187165,146.67,146.54,28.20459521]
[1642115991310,118.75187165,146.67,146.54,28.20459521]
[1642115991608,118.75187165,146.67,146.54,26.2946]
[1642115992712,3.6674923,146.66,146.54,26.2946]
[1642115992912,2.728,146.65,146.54,26.2946]
[1642115993114,51.46474748,146.64,146.54,27.94459521]
[1642115993313,2.728,146.63,146.54,27.94459521]
[1642115993512,3.238,146.63,146.54,27.94459521]
[1642115994517,3.238,146.63,146.54,28.20459521]
[1642115994714,2.978,146.63,146.54,27.94459521]
[1642115994915,2.978,146.63,146.54,28.20459521]
[1642115995916,0.25,146.63,146.54,28.20459521]
[1642115996115,120.81594748,146.64,146.54,28.20459521]
[1642115996318,120.81594748,146.64,146.54,30.93259521]
[1642115997015,121.07594748,146.64,146.54,30.93259521]
[1642116002650,121.07594748,146.64,146.54,29.0226]
[1642116002849,2.728,146.63,146.54,26.2946]
[1642116003052,24.0282,146.62,146.54,26.2946]
[1642116003450,30.4423582,146.61,146.54,26.2946]
[1642116003850,30.9523582,146.61,146.54,26.2946]
[1642116004053,0.51,146.61,146.54,26.5546]
[1642116004252,0.26,146.61,146.54,26.5546]
[1642116004451,24.5382,146.62,146.54,28.20459521]
[1642116007252,51.42984037,146.62,146.54,28.20459521]
[1642116008459,24.5382,146.62,146.54,28.20459521]
[1642116010760,24.2882,146.62,146.54,28.20459521]
[1642116010961,24.5382,146.62,146.54,28.20459521]
[1642116011261,24.2882,146.62,146.54,28.20459521]
[1642116011662,24.5382,146.62,146.54,28.20459521]
[1642116012261,48.29511605,146.62,146.54,28.20459521]
[1642116013961,54.29511605,146.62,146.54,28.20459521]
[1642116014361,24.5382,146.62,146.54,28.20459521]
[1642116018163,53.40255711,146.62,146.54,28.20459521]
[1642116018668,53.40255711,146.62,146.54,26.5546]
[1642116020068,24.5382,146.62,146.54,26.5546]
[1642116020769,24.5382,146.62,146.54,27.94459521]
[1642116020970,24.5382,146.62,146.54,26.2946]
[1642116021971,0.25,146.62,146.54,26.2946]
[1642116022172,2.728,146.63,146.54,28.20459521]
[1642116022369,93.4,146.64,146.54,28.20459521]
[1642116022370,93.4,146.64,146.58,10.2313]
[1642116022570,93.65,146.64,146.58,16.2313]
[1642116023505,1.95357344,146.63,146.58,6.0]
[1642116023872,2.46357344,146.63,146.57,34.15264567]
[1642116024072,2.21357344,146.63,146.57,34.15264567]
[1642116024274,2.21357344,146.63,146.57,34.40264567]
[1642116025177,2.21357344,146.63,146.58,10.2318]
[1642116025577,2.21357344,146.63,146.58,16.2318]
[1642116026983,2.46357344,146.63,146.58,16.2318]
[1642116030188,26.18315442,146.63,146.58,16.2318]
[1642116030391,26.18315442,146.63,146.58,6.0]
[1642116030592,2.728,146.62,146.56,6.0]
[1642116030890,28.18447344,146.62,146.56,6.0]
[1642116031112,28.69447344,146.62,146.54,15.81]
[1642116031813,1.95357344,146.61,146.54,16.06]
[1642116032012,2.46357344,146.61,146.54,16.06]
[1642116032313,25.11924082,146.6,146.54,26.294]
[1642116032511,31.09224082,146.6,146.54,15.81]
[1642116032714,31.09224082,146.6,146.52,1.92860741]
[1642116032912,25.896,146.59,146.52,7.92860741]
[1642116033313,26.406,146.59,146.52,1.92860741]
[1642116033811,36.6441,146.59,146.52,1.92860741]
[1642116034012,36.6441,146.59,146.49,37.04992405]
[1642116034013,25.25056311,146.57,146.49,38.97853146]
[1642116034215,25.7591,146.56,146.49,44.97853146]
[1642116034512,25.7591,146.56,146.49,7.92860741]
[1642116034513,26.2691,146.56,146.49,7.92860741]
[1642116034715,36.5087,146.56,146.49,7.92860741]
[1642116035318,36.5087,146.56,146.46,12.539]
[1642116035715,110.5187,146.56,146.46,12.539]
[1642116035917,110.5187,146.56,146.46,2.729]
[1642116036718,42.5087,146.56,146.46,35.12857696]
[1642116037016,26.2691,146.56,146.46,44.79977217]
[1642116037214,26.2691,146.56,146.46,54.60977217]
[1642116037615,26.2691,146.56,146.46,54.34977217]
[1642116038015,26.2691,146.56,146.46,54.60977217]
[1642116038216,2.989,146.56,146.46,54.60977217]
[1642116038415,2.729,146.56,146.46,54.60977217]
[1642116038616,27.183,146.59,146.47,2.73]
[1642116038916,27.183,146.59,146.52,28.79689182]
[1642116039117,27.183,146.59,146.52,29.04689182]
[1642116039718,24.713,146.59,146.52,29.04689182]
[1642116040122,24.713,146.59,146.52,39.28289182]
[1642116040321,24.963,146.59,146.52,39.28289182]
[1642116041925,24.963,146.59,146.52,45.28289182]
[1642116043324,2.729,146.61,146.52,60.59289182]
[1642116043524,26.90307344,146.62,146.56,10.2327]
[1642116044024,1.95357344,146.62,146.57,27.22783373]
[1642116044424,1.95357344,146.62,146.57,27.47783373]
[1642116044625,2.21357344,146.62,146.57,27.47783373]
[1642116045127,2.21357344,146.62,146.57,37.70993373]
[1642116047827,2.21357344,146.62,146.57,43.70993373]
[1642116050330,2.46357344,146.62,146.57,43.45993373]
[1642116050537,2.21357344,146.62,146.57,43.45993373]
[1642116051038,2.21357344,146.62,146.57,43.70993373]
[1642116052634,2.21357344,146.62,146.57,16.4821]
[1642116052833,2.21357344,146.62,146.57,6.0]
[1642116053034,2.46357344,146.62,146.55,16.2334]
[1642116053232,2.728,146.61,146.55,16.4834]
[1642116053634,3.238,146.61,146.55,16.4834]
[1642116054136,1.95357344,146.6,146.55,16.4834]
[1642116054633,2.46357344,146.6,146.55,16.4834]
[1642116055435,2.46357344,146.6,146.55,14.7780794]
[1642116060568,1.95357344,146.6,146.55,14.7780794]
[1642116060969,1.95357344,146.6,146.55,15.0380794]
[1642116061971,0.26,146.6,146.55,14.7780794]
[1642116062170,0.51,146.6,146.55,14.7780794]
[1642116062369,0.25,146.6,146.55,14.7780794]
[1642116063172,22.67755096,146.6,146.55,14.7780794]
[1642116063373,22.67755096,146.6,146.55,6.0]
[1642116063574,23.18755096,146.6,146.53,41.67699396]
[1642116063772,23.4412,146.59,146.53,41.67699396]
[1642116063973,23.9512,146.59,146.53,41.67699396]
[1642116064474,23.9512,146.59,146.53,41.92699396]
[1642116066378,0.51,146.59,146.53,41.92699396]
[1642116066576,29.26017344,146.61,146.53,41.92699396]
[1642116074085,29.26017344,146.61,146.53,16.2348]
[1642116074286,29.26017344,146.61,146.53,6.0]
[1642116074486,29.26017344,146.61,146.52,7.92860741]
[1642116074685,1.95357344,146.6,146.51,27.97480741]
[1642116074887,2.729,146.59,146.51,27.97480741]
[1642116075186,3.239,146.59,146.51,27.97480741]
[1642116075389,22.553,146.58,146.51,27.97480741]
[1642116075590,2.729,146.57,146.51,27.97480741]
[1642116075787,2.729,146.57,146.51,26.0462]
[1642116076021,2.989,146.57,146.51,26.5562]
[1642116076591,2.729,146.57,146.51,26.5562]
[1642116076788,22.553,146.58,146.51,28.48480741]
[1642116076991,22.553,146.58,146.51,31.21380741]
[1642116077988,22.813,146.58,146.51,31.21380741]
[1642116078389,1.95357344,146.6,146.51,31.21380741]
[1642116078592,1.95357344,146.61,146.52,4.65760741]
[1642116078789,1.95357344,146.61,146.56,10.2315]
[1642116078989,1.95357344,146.61,146.56,26.5515]
[1642116079189,1.95357344,146.61,146.57,2.728]
[1642116079388,1.95357344,146.61,146.58,39.43194525]
[1642116079590,1.95357344,146.63,146.59,6.06439993]
[1642116079789,1.95357344,146.63,146.59,15.87439993]
[1642116079991,1.95357344,146.63,146.59,22.38439993]
[1642116080189,1.95357344,146.63,146.59,32.61289993]
[1642116081094,93.4,146.64,146.59,32.61289993]
[1642116083996,1.95357344,146.65,146.59,42.38089514]
[1642116084295,1.95357344,146.65,146.62,10.2251]
[1642116084495,1.95357344,146.65,146.62,26.5451]
[1642116084696,1.95357344,146.65,146.64,22.56719245]
[1642116085095,1.95357344,146.68,146.64,28.81719245]
[1642116085295,1.95357344,146.68,146.64,29.07719245]
[1642116085697,1.95357344,146.68,146.64,40.95198766]
[1642116086098,1.95357344,146.68,146.65,9.81]
[1642116086298,1.95357344,146.68,146.66,3.03219997]
[1642116086495,1.95357344,146.69,146.66,9.29219997]
[1642116086896,1.95357344,146.69,146.66,19.10219997]
[1642116087299,1.95357344,146.69,146.66,29.32579997]
[1642116087500,7.344e-05,146.69,146.66,31.22579518]
[1642116087800,93.40007344,146.7,146.67,3.03219996]
[1642116087998,2.727,146.71,146.68,12.84219997]
[1642116088398,2.727,146.71,146.68,19.35219997]
[1642116088799,2.727,146.71,146.69,3.03219996]
[1642116089002,2.727,146.71,146.7,41.43868679]
[1642116089299,93.4,146.76,146.7,57.00688676]
[1642116089500,93.4,146.76,146.7,63.51688676]
[1642116089901,93.4,146.76,146.7,65.16688197]
[1642116091427,93.4,146.76,146.7,62.44088197]
[1642116091727,93.4,146.76,146.7,65.16688197]
[1642116092630,93.4,146.76,146.7,63.51688676]
[1642116092830,2.726,146.75,146.7,60.79088676]
[1642116093230,2.726,146.75,146.7,54.79088676]
[1642116094033,93.4,146.76,146.7,59.16688197]
[1642116094630,93.4,146.76,146.7,65.16688197]
[1642116094832,93.4,146.76,146.7,133.17688197]
[1642116095633,93.4,146.76,146.7,140.59488197]
[1642116095833,3.6674923,146.8,146.7,140.59488197]
[1642116095834,3.6674923,146.8,146.75,10.2161]
[1642116096032,3.6674923,146.8,146.76,9.81]
[1642116096232,3.6674923,146.8,146.76,16.533]
[1642116096436,3.6674923,146.8,146.77,31.9754996]
[1642116096632,3.6674923,146.8,146.77,41.7854996]
[1642116096832,3.6674923,146.8,146.77,48.2954996]
[1642116097134,8.22623845,146.84,146.78,17.92979514]
[1642116097332,93.4,146.85,146.78,17.92979514]
[1642116097333,7.80532408,146.83,146.79,9.81]
[1642116097534,7.80532408,146.83,146.79,87.053]
[1642116098033,7.80532408,146.83,146.8,30.23712713]
[1642116098233,7.80532408,146.83,146.81,23.05469996]
[1642116098432,7.80532408,146.83,146.81,26.08689993]
[1642116098633,3.90266204,146.83,146.81,32.59689993]
[1642116098836,3.90266204,146.88,146.81,32.59689993]
[1642116099039,3.90266204,146.88,146.81,32.33689993]
[1642116099237,4.15266204,146.88,146.81,32.08689993]
[1642116099637,2.723,146.87,146.81,21.87439993]
[1642116100440,2.983,146.87,146.81,22.12439993]
[1642116100640,2.723,146.87,146.81,22.12439993]
[1642116100840,2.723,146.87,146.81,22.38439993]
[1642116101241,2.723,146.87,146.84,10.2136]
[1642116101441,2.723,146.89,146.84,10.2136]
[1642116101842,2.973,146.89,146.85,29.45194537]
[1642116102041,3.233,146.89,146.85,29.45194537]
[1642116102844,3.9014416,146.88,146.85,29.45194537]
[1642116103046,2.723,146.87,146.85,29.45194537]
[1642116103244,6.6244416,146.88,146.85,29.45194537]
[1642116103845,2.723,146.88,146.85,29.45194537]
[1642116104248,2.983,146.88,146.85,29.45194537]
[1642116104446,0.51,146.88,146.85,29.45194537]
[1642116104649,0.25,146.88,146.85,29.45194537]
[1642116104847,0.25,146.88,146.85,39.66464537]
[1642116105048,2.723,146.89,146.86,6.06439993]
[1642116105451,2.723,146.89,146.86,6.31439993]
[1642116105850,2.723,146.89,146.86,12.31439993]
[1642116106051,2.723,146.89,146.86,22.52659993]
[1642116106250,93.4,146.9,146.86,22.52659993]
[1642116106450,93.66,146.9,146.86,22.52659993]
[1642116107152,93.66,146.9,146.86,22.27659993]
[1642116107153,93.4,146.9,146.86,22.27659993]
[1642116107351,93.65,146.9,146.86,12.06439993]
[1642116108158,93.4,146.9,146.86,12.06439993]
[1642116108358,3.90121172,146.89,146.86,6.06439993]
[1642116108566,7.13421172,146.89,146.86,6.06439993]
[1642116108759,6.88421172,146.89,146.85,10.2129]
[1642116108958,4.16121172,146.89,146.85,16.4629]
[1642116109360,3.90121172,146.88,146.85,16.4629]
[1642116109781,3.90121172,146.88,146.86,33.95228261]
[1642116109982,3.90121172,146.88,146.87,10.2115]
[1642116110181,93.4,146.9,146.87,10.2115]
[1642116110382,93.4,146.9,146.87,10.4615]
[1642116110783,93.66,146.9,146.87,10.4615]
[1642116110983,93.66,146.9,146.87,10.2115]
[1642116111684,93.66,146.9,146.88,6.06439993]
[1642116111887,93.66,146.9,146.89,22.61732772]
[1642116112987,97.56079402,146.9,146.89,28.68172765]
[1642116116296,97.56079402,146.9,146.89,22.61732772]
[1642116117588,97.30079402,146.9,146.89,22.61732772]
[1642116117788,97.30079402,146.9,146.89,28.68172765]
[1642116117989,97.30079402,146.9,146.89,28.94172765]
[1642116118189,97.30079402,146.9,146.89,28.68172765]
[1642116118389,97.30079402,146.9,146.89,28.94172765]
[1642116118592,97.30079402,146.9,146.89,34.94172765]
[1642116118790,97.30079402,146.9,146.89,34.68172765]
[1642116118991,97.30079402,146.9,146.89,34.94172765]
[1642116119191,93.4,146.9,146.89,34.94172765]
[1642116119390,93.4,146.9,146.89,35.19172765]
[1642116120092,93.4,146.9,146.89,34.93172765]
[1642116120293,93.4,146.9,146.89,45.40172765]
[1642116121094,93.4,146.9,146.89,45.14172765]
[1642116121294,93.4,146.9,146.89,44.89172765]
[1642116121695,93.4,146.9,146.89,12.06439993]
[1642116122096,93.66,146.9,146.89,12.06439993]
[1642116122296,93.66,146.9,146.89,6.0]
[1642116122496,93.66,146.9,146.86,15.81]
[1642116122698,93.66,146.9,146.87,40.9820656]
[1642116122894,97.56071918,146.9,146.88,6.06439993]
[1642116123096,97.56071918,146.9,146.88,9.03219996]
[1642116123294,97.56071918,146.9,146.88,6.0]
[1642116123500,97.56071918,146.9,146.88,0.25]
[1642116123696,97.30071918,146.9,146.88,10.4608]
[1642116123899,93.4,146.9,146.88,10.4608]
[1642116124099,93.4,146.9,146.89,6.06439993]
[1642116124497,93.4,146.9,146.89,12.57439993]
[1642116124904,93.4,146.9,146.89,12.31439993]
[1642116125302,93.4,146.9,146.89,22.78329993]
[1642116125706,2.723,146.94,146.89,22.52329993]
[1642116125907,24.1606,146.95,146.89,22.78329993]
[1642116126108,29.66183845,146.95,146.89,22.78329993]
[1642116126513,5.50123845,146.95,146.92,10.2065]
[1642116126813,3.89954034,146.94,146.92,10.2065]
[1642116127013,3.89954034,146.94,146.92,16.7165]
[1642116127415,3.89954034,146.94,146.93,3.03219997]
[1642116127613,4.15954034,146.95,146.93,6.31439993]
[1642116127814,3.89954034,146.95,146.93,6.57439993]
[1642116128014,3.89954034,146.95,146.93,22.78079993]
[1642116128639,3.89954034,146.95,146.94,25.06273866]
[1642116128840,3.89954034,146.95,146.94,37.59473866]
[1642116129040,3.89954034,146.95,146.94,44.10473866]
[1642116129243,5.50123845,146.98,146.94,44.10473866]
[1642116129441,93.4,147.01,146.95,68.01]
[1642116129641,2.721,147.03,146.97,102.0116]
[1642116129846,2.721,147.03,146.98,9.81]
[1642116130042,2.721,147.03,146.99,2.72]
[1642116130243,2.721,147.03,147.01,24.51684295]
[1642116130442,93.4,147.07,147.02,10.1975]
[1642116130644,93.4,147.07,147.04,22.55546867]
[1642116130842,93.4,147.07,147.05,6.06439993]
[1642116131043,93.4,147.07,147.05,12.31439993]
[1642116131843,93.4,147.07,147.05,32.58119993]
[1642116132446,2.719,147.13,147.05,32.58119993]
[1642116132644,71.8608438,147.14,147.06,2.719]
[1642116132843,71.8608438,147.14,147.08,10.1964]
[1642116133043,71.8608438,147.14,147.05,16.06]
[1642116133243,73.77083901,147.14,147.05,9.81]
[1642116133443,73.77083901,147.14,147.05,15.81]
[1642116133844,78.3708438,147.14,147.05,9.81]
[1642116134043,72.3708438,147.14,147.05,15.81]
[1642116134243,72.3708438,147.14,147.05,26.0089]
[1642116134546,48.9009,147.14,147.05,26.5189]
[1642116135343,48.9009,147.14,147.05,29.2379]
[1642116136650,49.1609,147.14,147.05,29.2379]
[1642116137048,2.719,147.14,147.05,29.2379]
[1642116137250,2.719,147.14,147.06,1.64999521]
[1642116137549,168.8,147.15,147.1,10.1934]
[1642116137754,168.8,147.15,147.1,10.4534]
[1642116137951,168.8,147.15,147.1,16.7034]
[1642116138150,168.8,147.15,147.1,6.0]
[1642116138550,169.31,147.15,147.09,49.7878]
[1642116138751,172.028,147.15,147.09,49.7878]
[1642116139254,171.778,147.15,147.11,10.1942]
[1642116139453,171.518,147.15,147.11,16.1942]
[1642116139653,2.718,147.15,147.11,16.1942]
[1642116139861,2.718,147.15,147.11,16.4442]
[1642116140456,96.118,147.16,147.11,6.0]
[1642116140657,0.25,147.15,147.11,6.0]
[1642116140856,2.718,147.14,147.07,9.81]
[1642116141060,2.978,147.14,147.07,16.06]
[1642116141357,2.978,147.14,147.07,38.49538748]
[1642116141760,2.718,147.14,147.08,10.1967]
[1642116141963,0.26,147.14,147.08,16.4467]
[1642116142561,2.979,147.15,147.08,16.7067]
[1642116142763,0.26,147.15,147.08,16.7067]
[1642116142960,93.66,147.16,147.08,16.7067]